fUSD/lending_fUSD_20251112
["ID","MTS","AMOUNT","RATE_DAILY","PERIOD"]
[393771522,1762974643658,-429.21089253,0.00040429,30]
[393771523,1762974643668,-330780.237808,0.00040429,2]
[393771524,1762974643679,-2000.0,0.00040429,30]
[393771525,1762974643689,-3352.2155007,0.00040429,2]
[393771526,1762974643700,-23377.84301058,0.00040429,7]
[393771527,1762974643711,-300.0,0.00040429,10]
[393771528,1762974643720,-300.0,0.00040429,10]
[393771529,1762974643731,-300.0,0.00040429,10]
[393771530,1762974643740,-307.54098138,0.00040429,10]
[393771531,1762974643751,-200.0,0.0004043,7]
[393771532,1762974643761,-151.0,0.0004043,120]
[393771533,1762974643771,-151.0,0.0004043,120]
[393771534,1762974643781,-151.0,0.0004043,30]
[393771535,1762974643791,-151.0,0.0004043,30]
[393771536,1762974643803,-151.0,0.0004043,120]
[393771537,1762974643813,-151.0,0.0004043,120]
[393771538,1762974643823,-151.0,0.0004043,120]
[393771539,1762974643834,-160.0,0.0004043,120]
[393771540,1762974643845,-160.0,0.0004043,120]
[393771541,1762974643855,-160.0,0.0004043,120]
[393771542,1762974643865,-160.0,0.0004043,120]
[393771543,1762974643877,-160.0,0.0004043,120]
[393771544,1762974643886,-160.0,0.0004043,120]
[393771545,1762974643897,-160.0,0.0004043,120]
[393771546,1762974643907,-160.0,0.0004043,120]
[393771547,1762974643918,-160.0,0.0004043,120]
[393771548,1762974643929,-160.0,0.0004043,120]
[393771549,1762974643940,-160.0,0.0004043,120]
[393771550,1762974643950,-160.0,0.0004043,120]
[393771551,1762974643960,-160.0,0.0004043,120]
[393771552,1762974643971,-160.0,0.0004043,120]
[393771553,1762974643981,-160.0,0.0004043,120]
[393771554,1762974643990,-160.0,0.0004043,120]
[393771555,1762974644001,-160.0,0.0004043,120]
[393771556,1762974644011,-160.0,0.0004043,120]
[393771557,1762974644022,-160.0,0.0004043,120]
[393771558,1762974644034,-160.0,0.0004043,120]
[393771559,1762974644044,-200.0,0.0004043,7]
[393771560,1762974644054,-338.3169389,0.0004043,30]
[393771561,1762974644064,-152.676191,0.0004043,120]
[393771562,1762974644074,-151.0,0.0004043,120]
[393771563,1762974644083,-499.296404,0.0004043,120]
[393771564,1762974644093,-151.0,0.0004043,120]
[393771565,1762974644105,-499.296404,0.0004043,120]
[393771566,1762974644114,-151.0,0.0004043,120]
[393771567,1762974644124,-499.296404,0.0004043,120]
[393771568,1762974644134,-151.0,0.0004043,120]
[393771569,1762974644147,-499.296404,0.0004043,120]
[393771570,1762974644159,-151.0,0.0004043,120]
[393771571,1762974644169,-151.0,0.0004043,120]
[393771572,1762974644179,-499.296404,0.0004043,120]
[393771573,1762974644190,-499.296404,0.0004043,120]
[393771574,1762974644201,-151.0,0.0004043,120]
[393771575,1762974644212,-499.296404,0.0004043,120]
[393771576,1762974644223,-151.0,0.0004043,120]
[393771577,1762974644233,-499.296404,0.0004043,120]
[393771578,1762974644243,-251.120984,0.0004043,120]
[393771579,1762974644252,-499.296404,0.0004043,120]
[393771580,1762974644262,-499.296404,0.0004043,120]
[393771581,1762974644272,-499.296404,0.0004043,120]
[393771582,1762974644282,-499.296404,0.0004043,120]
[393771583,1762974644292,-499.296404,0.0004043,120]
[393771584,1762974644301,-499.296404,0.0004043,120]
[393771585,1762974644312,-499.296404,0.0004043,120]
[393771586,1762974644323,-499.296404,0.0004043,120]
[393771587,1762974644334,-499.296404,0.0004043,120]
[393771588,1762974644344,-499.296404,0.0004043,120]
[393771589,1762974644353,-499.296404,0.0004043,120]
[393771590,1762974644363,-499.296408,0.0004043,120]
[393771591,1762974644374,-151.0,0.0004043,120]
[393771592,1762974644385,-151.0,0.0004043,120]
[393771593,1762974644394,-151.0,0.0004043,120]
[393771594,1762974644404,-151.0,0.0004043,120]
[393771595,1762974644414,-151.0,0.0004043,120]
[393771596,1762974644424,-291.4992,0.0004043,120]
[393771597,1762974644434,-257.468904,0.0004043,21]
[393771598,1762974644443,-257.468904,0.0004043,21]
[393771599,1762974644453,-257.468904,0.0004043,21]
[393771600,1762974644463,-257.468904,0.0004043,21]
[393771601,1762974644472,-257.468904,0.0004043,21]
[393771602,1762974644482,-153.163067,0.0004043,120]
[393771603,1762974644491,-257.468904,0.0004043,21]
[393771604,1762974644501,-257.468904,0.0004043,21]
[393771605,1762974644510,-257.468904,0.0004043,21]
[393771606,1762974644520,-257.468904,0.0004043,21]
[393771607,1762974644530,-257.468904,0.0004043,21]
[393771608,1762974644539,-257.468904,0.0004043,21]
[393771609,1762974644549,-257.468904,0.0004043,21]
[393771610,1762974644562,-257.468904,0.0004043,21]
[393771611,1762974644572,-257.468904,0.0004043,21]
[393771612,1762974644582,-257.468904,0.0004043,21]
[393771613,1762974644592,-257.468904,0.0004043,21]
[393771614,1762974644602,-151.0,0.0004043,120]
[393771615,1762974644612,-257.468904,0.0004043,21]
[393771616,1762974644622,-151.0,0.0004043,120]
[393771617,1762974644632,-257.468904,0.0004043,21]
[393771618,1762974644641,-151.0,0.0004043,120]
[393771619,1762974644651,-257.468904,0.0004043,21]
[393771620,1762974644660,-151.0,0.0004043,120]
[393771621,1762974644670,-257.468901,0.0004043,21]
[393771622,1762974644679,-173.443424,0.0004043,120]
[393771623,1762974644690,-153.192749,0.0004043,120]
[393771624,1762974644700,-151.0,0.0004043,120]
[393771625,1762974644710,-151.0,0.0004043,120]
[393771626,1762974644720,-153.975634,0.0004043,120]
[393771627,1762974644730,-151.0,0.0004043,120]
[393771628,1762974644740,-151.0,0.0004043,120]
[393771629,1762974644750,-173.241516,0.0004043,120]
[393771630,1762974644768,-151.0,0.0004043,120]
[393771631,1762974644778,-153.945311,0.0004043,120]
[393771632,1762974644788,-151.0,0.0004043,120]
[393771633,1762974644798,-151.0,0.0004043,120]
[393771634,1762974644809,-151.0,0.0004043,120]
[393771635,1762974644819,-151.0,0.0004043,120]
[393771636,1762974644830,-174.187816,0.0004043,120]
[393771637,1762974644840,-151.0,0.0004043,120]
[393771638,1762974644855,-151.0,0.0004043,120]
[393771639,1762974644866,-151.0,0.0004043,120]
[393771640,1762974644876,-263.395427,0.0004043,120]
[393771641,1762974644886,-151.0,0.0004043,120]
[393771642,1762974644898,-151.0,0.0004043,120]
[393771643,1762974644908,-151.0,0.0004043,120]
[393771644,1762974644919,-151.0,0.0004043,120]
[393771645,1762974644929,-151.0,0.0004043,120]
[393771646,1762974644940,-287.033374,0.0004043,120]
[393771647,1762974644951,-151.0,0.0004043,120]
[393771648,1762974644961,-151.0,0.0004043,120]
[393771649,1762974644975,-151.0,0.0004043,120]
[393771650,1762974644986,-151.0,0.0004043,120]
[393771651,1762974644997,-151.0,0.0004043,120]
[393771652,1762974645010,-159.913985,0.0004043,120]
[393771653,1762974645020,-151.0,0.0004043,120]
[393771654,1762974645030,-151.0,0.0004043,120]
[393771655,1762974645040,-151.0,0.0004043,120]
[393771656,1762974645050,-151.0,0.0004043,120]
[393771657,1762974645060,-151.0,0.0004043,120]
[393771658,1762974645070,-155.284573,0.0004043,120]
[393771659,1762974645080,-151.0,0.0004043,120]
[393771660,1762974645090,-151.0,0.0004043,120]
[393771661,1762974645101,-151.0,0.0004043,120]
[393771662,1762974645112,-187.783488,0.0004043,120]
[393771663,1762974645123,-152.141013,0.0004043,120]
[393771664,1762974645132,-151.0,0.0004043,120]
[393771665,1762974645145,-152.220424,0.0004043,120]
[393771666,1762974645155,-151.0,0.0004043,120]
[393771667,1762974645167,-151.0,0.0004043,120]
[393771668,1762974645183,-151.0,0.0004043,120]
[393771669,1762974645193,-151.0,0.0004043,120]
[393771670,1762974645207,-151.0,0.0004043,120]
[393771671,1762974645218,-151.0,0.0004043,120]
[393771672,1762974645229,-151.0,0.0004043,120]
[393771673,1762974645240,-151.0,0.0004043,120]
[393771674,1762974645250,-152.854819,0.0004043,120]
[393771675,1762974645260,-151.0,0.0004043,120]
[393771676,1762974645270,-151.0,0.0004043,120]
[393771677,1762974645280,-151.0,0.0004043,120]
[393771678,1762974645291,-151.0,0.0004043,60]
[393771679,1762974645301,-151.0,0.0004043,120]
[393771680,1762974645311,-151.0,0.0004043,120]
[393771681,1762974645321,-151.0,0.0004043,120]
[393771682,1762974645331,-151.0,0.0004043,120]
[393771683,1762974645341,-151.0,0.0004043,120]
[393771684,1762974645351,-151.0,0.0004043,120]
[393771685,1762974645361,-151.0,0.0004043,120]
[393771686,1762974645371,-151.0,0.0004043,120]
[393771687,1762974645381,-151.0,0.0004043,120]
[393771688,1762974645394,-151.0,0.0004043,120]
[393771689,1762974645404,-151.0,0.0004043,120]
[393771690,1762974645414,-151.0,0.0004043,120]
[393771691,1762974645424,-151.0,0.0004043,120]
[393771692,1762974645433,-151.0,0.0004043,120]
[393771693,1762974645443,-151.0,0.0004043,120]
[393771694,1762974645453,-151.0,0.0004043,120]
[393771695,1762974645463,-151.0,0.0004043,120]
[393771696,1762974645474,-152.841827,0.0004043,120]
[393771697,1762974645483,-151.0,0.0004043,120]
[393771698,1762974645493,-151.0,0.0004043,120]
[393771699,1762974645504,-159.884379,0.0004043,120]
[393771700,1762974645514,-151.0,0.0004043,120]
[393771701,1762974645524,-151.932959,0.0004043,120]
[393771702,1762974645534,-151.0,0.0004043,120]
[393771703,1762974645544,-151.0,0.0004043,120]
[393771704,1762974645553,-151.0,0.0004043,120]
[393771705,1762974645564,-151.0,0.0004043,120]
[393771706,1762974645575,-286.535392,0.0004043,120]
[393771707,1762974645584,-151.0,0.0004043,120]
[393771708,1762974645596,-151.135937,0.0004043,120]
[393771709,1762974645606,-179.037346,0.0004043,120]
[393771710,1762974645617,-151.0,0.0004043,120]
[393771711,1762974645627,-151.0,0.0004043,120]
[393771712,1762974645637,-189.101147,0.0004043,120]
[393771714,1762974645647,-151.0,0.0004043,120]
[393771715,1762974645657,-151.0,0.0004043,120]
[393771716,1762974645667,-151.0,0.0004043,120]
[393771717,1762974645677,-151.0,0.0004043,120]
[393771718,1762974645686,-151.0,0.0004043,120]
[393771719,1762974645697,-156.397523,0.0004043,120]
[393771721,1762974645707,-151.0,0.0004043,120]
[393771722,1762974645716,-151.0,0.0004043,120]
[393771723,1762974645726,-151.0,0.0004043,120]
[393771724,1762974645736,-151.0,0.0004043,120]
[393771725,1762974645746,-151.0,0.0004043,120]
[393771726,1762974645756,-159.587371,0.0004043,30]
[393771727,1762974645767,-151.0,0.0004043,120]
[393771728,1762974645776,-151.0,0.0004043,120]
[393771729,1762974645787,-151.0,0.0004043,120]
[393771730,1762974645797,-152.294396,0.0004043,120]
[393771731,1762974645806,-155.601954,0.0004043,120]
[393771732,1762974645816,-151.0,0.0004043,120]
[393771733,1762974645826,-151.0,0.0004043,120]
[393771734,1762974645836,-151.0,0.0004043,120]
[393771735,1762974645846,-151.0,0.0004043,90]
[393771736,1762974645856,-151.0,0.0004043,90]
[393771737,1762974645867,-154.011465,0.0004043,90]
[393771738,1762974645879,-151.0,0.0004043,120]
[393771739,1762974645889,-151.0,0.0004043,120]
[393771740,1762974645899,-214.883276,0.0004043,120]
[393771741,1762974645909,-151.0,0.0004043,120]
[393771742,1762974645919,-151.0,0.0004043,120]
[393771743,1762974645930,-177.622712,0.0004043,120]
[393771744,1762974645940,-151.0,0.0004043,120]
[393771745,1762974645950,-186.372097,0.0004043,120]
[393771746,1762974645960,-151.0,0.0004043,120]
[393771747,1762974645970,-151.0,0.0004043,120]
[393771748,1762974645980,-151.0,0.0004043,120]
[393771749,1762974645990,-151.0,0.0004043,120]
[393771750,1762974646000,-151.0,0.0004043,120]
[393771751,1762974646010,-151.0,0.0004043,120]
[393771752,1762974646020,-151.0,0.0004043,120]
[393771753,1762974646030,-151.0,0.0004043,120]
[393771754,1762974646041,-154.090638,0.0004043,120]
[393771755,1762974646051,-151.0,0.0004043,120]
[393771756,1762974646062,-204.735556,0.0004043,120]
[393771757,1762974646072,-154.014904,0.0004043,120]
[393771758,1762974646083,-324.34,0.0004043,30]
[393771759,1762974646092,-151.0,0.0004043,120]
[393771760,1762974646103,-151.0,0.0004043,120]
[393771761,1762974646114,-153.101118,0.0004043,120]
[393771762,1762974646126,-151.0,0.0004043,120]
[393771763,1762974646137,-157.763248,0.0004043,120]
[393771764,1762974646150,-151.0,0.0004043,120]
[393771765,1762974646161,-151.0,0.0004043,120]
[393771766,1762974646171,-151.0,0.0004043,120]
[393771767,1762974646183,-151.0,0.0004043,120]
[393771768,1762974646193,-151.0,0.0004043,120]
[393771769,1762974646203,-215.627776,0.0004043,120]
[393771770,1762974646212,-151.0,0.0004043,120]
[393771771,1762974646224,-151.0,0.0004043,120]
[393771772,1762974646234,-151.0,0.0004043,120]
[393771773,1762974646244,-153.938725,0.0004043,120]
[393771774,1762974646254,-151.0,0.0004043,120]
[393771775,1762974646264,-151.0,0.0004043,120]
[393771776,1762974646274,-151.0,0.0004043,120]
[393771777,1762974646284,-151.0,0.0004043,120]
[393771778,1762974646294,-151.0,0.0004043,120]
[393771779,1762974646303,-151.0,0.0004043,120]
[393771780,1762974646313,-151.0,0.0004043,120]
[393771781,1762974646323,-161.921447,0.0004043,120]
[393771782,1762974646333,-154.26487,0.0004043,120]
[393771783,1762974646344,-152.908875,0.0004043,120]
[393771784,1762974646354,-153.851686,0.0004043,120]
[393771785,1762974646363,-153.851686,0.0004043,120]
[393771786,1762974646373,-153.851686,0.0004043,120]
[393771787,1762974646509,-153.851686,0.0004043,120]
[393771788,1762974646520,-153.851686,0.0004043,120]
[393771789,1762974646532,-153.851686,0.0004043,120]
[393771790,1762974646542,-153.851686,0.0004043,120]
[393771791,1762974646551,-153.851686,0.0004043,120]
[393771792,1762974646561,-153.851686,0.0004043,120]
[393771793,1762974646570,-153.851686,0.0004043,120]
[393771794,1762974646578,-153.851686,0.0004043,120]
[393771795,1762974646586,-153.851686,0.0004043,120]
[393771796,1762974646596,-153.851686,0.0004043,120]
[393771797,1762974646606,-153.851686,0.0004043,120]
[393771798,1762974646615,-153.851686,0.0004043,120]
[393771799,1762974646625,-153.851686,0.0004043,120]
[393771800,1762974646634,-153.851686,0.0004043,120]
[393771801,1762974646643,-153.851686,0.0004043,120]
[393771802,1762974646653,-153.851686,0.0004043,120]
[393771803,1762974646662,-153.851691,0.0004043,120]
[393771804,1762974646672,-151.000008,0.0004043,120]
[393771805,1762974646681,-151.0,0.0004043,120]
[393771806,1762974646691,-151.0,0.0004043,120]
[393771807,1762974646699,-151.0,0.0004043,120]
[393771808,1762974646710,-151.0,0.0004043,120]
[393771809,1762974646719,-151.0,0.0004043,120]
[393771810,1762974646729,-151.0,0.0004043,120]
[393771811,1762974646739,-151.0,0.0004043,120]
[393771812,1762974646748,-151.0,0.0004043,120]
[393771813,1762974646757,-238.6492,0.0004043,120]
[393771814,1762974646766,-151.0,0.00040431,14]
[393771815,1762974646775,-154.94105912,0.00040431,14]
[393771816,1762974646784,-109816.28704156,0.00040433,29]
[393771817,1762974646794,-263938.13304069,0.00040434,7]
[393771821,1762974646955,-2930.4,0.00040434,7]
[393771822,1762974646996,-5069.5,0.00040434,7]
[393771823,1762974647007,-9425.39272382,0.00040434,7]
[393771824,1762974647022,-46250.47333448,0.00040434,7]
[393771825,1762974647037,-963.08000337,0.00040434,7]
[393771826,1762974647050,-10341.95204707,0.00040434,7]
[393771827,1762974647120,-1189.0,0.00038249,2]
[393771828,1762974647131,-426.39636,0.00040434,7]
[393771829,1762974647145,-2049.09783876,0.00040434,7]
[393771830,1762974647157,-790.86652714,0.00040434,7]
[393771831,1762974647169,-305.0000025,0.00040434,7]
[393771832,1762974647181,-8226.99659642,0.00040434,7]
[393771833,1762974647195,-13478.90082,0.00040434,7]
[393771834,1762974647207,-8184.80001,0.00040434,7]
[393771835,1762974647219,-9132.59330511,0.00040434,7]
[393771836,1762974647231,-3553.37892708,0.00040434,7]
[393771837,1762974647242,-4472.92338322,0.00040434,7]
[393771838,1762974647255,-395.472,0.00040434,7]
[393771839,1762974647267,-2090.40897658,0.00040434,7]
[393771840,1762974647279,-1576.9914613,0.00040434,7]
[393771841,1762974647560,-1.7e-07,0.00040434,7]
[393771842,1762974647572,-15611.64095999,0.00040434,7]
[393771843,1762974647583,-6814799.76897566,0.00040434,7]
[393771844,1762974647672,-23719.24312522,0.00040434,7]
[393771845,1762974647701,-10145.25,0.00040434,7]
[393771846,1762974647714,-1790.24263658,0.00040434,7]
[393771847,1762974647730,-44102.8356912,0.00040434,7]
[393771848,1762974648062,-613.80123466,0.00040429,2]
[393771849,1762974648072,-158.74233297,0.00040429,2]
[393771850,1762974648082,-2805.67757596,0.00040434,7]
[393771851,1762974648108,-145.79225407,0.00040434,7]
[393771852,1762974648119,-7860.805984,0.00040434,7]
[393771853,1762974648131,-10144.1088,0.00040434,7]
[393771854,1762974648146,-1510.13526797,0.00040434,7]
[393771855,1762974648158,-3755.54023686,0.00040434,7]
[393771856,1762974648169,-1335.22,0.00040434,7]
[393771857,1762974648180,-7615.23648785,0.00040434,7]
[393771858,1762974648195,-35555.00808138,0.00040434,7]
[393771859,1762974648206,-335.74833584,0.00040434,7]
[393771860,1762974648219,-3920.38666806,0.00040434,7]
[393771861,1762974648239,-1527.89999996,0.00040434,7]
[393771862,1762974654366,266.7213,0.00040434,30]
[393771863,1762974724963,254.78621353,0.00040434,120]
[393771864,1762974727192,250.69805576,0.00040434,120]
[393771865,1762974727429,151.0,0.00040434,120]
[393771866,1762974728012,151.0,0.00040434,120]
[393771867,1762974728680,151.0,0.00040434,120]
[393771868,1762974729392,151.0,0.00040434,120]
[393771869,1762974729996,151.0,0.00040434,120]
[393771870,1762974730613,151.0,0.00040434,120]
[393771871,1762974730766,200.0,0.00040434,120]
[393771872,1762974731459,151.0,0.00040434,120]
[393771873,1762974732086,151.0,0.00040434,120]
[393771874,1762974732707,151.0,0.00040434,120]
[393771875,1762974732954,272.34449863,0.00040434,120]
[393771876,1762974733356,151.0,0.00040434,120]
[393771877,1762974733836,400.31009864,0.00040434,120]
[393771878,1762974733977,151.0,0.00040434,120]
[393771879,1762974737525,409.72033143,0.00040434,120]
[393771880,1762974760077,-555.78728961,0.00016991,2]
[393771881,1762974761620,-151.86366074,0.00016991,2]
[393771882,1762974856756,-1436.71,0.00033005,34]
[393771883,1762974856797,-1123.0,0.00035017,120]
[393771884,1762974856836,-999.0,0.00035616,120]
[393771885,1762974856873,-1123.0,0.00036172,120]
[393771886,1762974856910,-1123.0,0.00036304,120]
[393771887,1762974856947,-189.38521949,0.000372,120]
[393771888,1762974856984,-1808.2941,0.00038888,30]
[393771889,1762974857028,-173.36374138,0.000389,120]
[393771890,1762974857065,-181.07643757,0.000389,120]
[393771891,1762974857103,-153.0,0.00039576,120]
[393771892,1762974857139,-153.0,0.00039576,120]
[393771893,1762974857176,-153.0,0.00039576,120]
[393771894,1762974857212,-153.0,0.00039576,120]
[393771895,1762974857252,-153.0,0.00039576,120]
[393771896,1762974857287,-153.0,0.00039576,120]
[393771897,1762974857331,-153.0,0.00039576,120]
[393771898,1762974857379,-153.0,0.00039576,120]
[393771899,1762974857422,-153.0,0.00039576,120]
[393771900,1762974857465,-153.0,0.00039576,120]
[393771901,1762974857512,-153.0,0.00039576,120]
[393771902,1762974857559,-153.0,0.00039576,120]
[393771903,1762974857604,-153.0,0.00039576,120]
[393771904,1762974857649,-153.0,0.00039576,120]
[393771905,1762974857694,-153.0,0.00039576,120]
[393771906,1762974857736,-153.0,0.00039576,120]
[393771907,1762974857776,-153.0,0.00039576,120]
[393771908,1762974857817,-153.0,0.00039576,120]
[393771909,1762974857857,-153.0,0.00039576,120]
[393771910,1762974857898,-153.0,0.00039576,120]
[393771911,1762974857939,-153.0,0.00039576,120]
[393771912,1762974857984,-153.0,0.00039576,120]
[393771913,1762974858026,-153.0,0.00039576,120]
[393771914,1762974858069,-153.0,0.00039576,120]
[393771915,1762974858111,-153.0,0.00039576,120]
[393771916,1762974858152,-153.0,0.00039576,120]
[393771917,1762974858194,-153.0,0.00039576,120]
[393771918,1762974858235,-153.0,0.00039576,120]
[393771919,1762974858276,-153.0,0.00039576,120]
[393771920,1762974858316,-184.0,0.00039577,120]
[393771921,1762974858356,-184.0,0.00039577,120]
[393771922,1762974858396,-184.0,0.00039577,120]
[393771923,1762974858434,-184.0,0.00039577,120]
[393771924,1762974858471,-184.0,0.00039577,120]
[393771925,1762974858719,-184.0,0.00039577,120]
[393771926,1762974858756,-184.0,0.00039577,120]
[393771927,1762974858789,-184.0,0.00039577,120]
[393771928,1762974858822,-184.0,0.00039577,120]
[393771929,1762974858855,-184.0,0.00039577,120]
[393771930,1762974858890,-184.0,0.00039577,120]
[393771931,1762974858925,-184.0,0.00039577,120]
[393771932,1762974858960,-184.0,0.00039577,120]
[393771933,1762974858994,-184.0,0.00039577,120]
[393771934,1762974859028,-184.0,0.00039577,120]
[393771935,1762974859062,-184.0,0.00039577,120]
[393771936,1762974859098,-184.0,0.00039577,120]
[393771937,1762974859137,-184.0,0.00039577,120]
[393771938,1762974859176,-184.0,0.00039577,120]
[393771939,1762974859218,-184.0,0.00039577,120]
[393771940,1762974859258,-184.0,0.00039577,120]
[393771941,1762974859296,-184.0,0.00039577,120]
[393771942,1762974859334,-184.0,0.00039577,120]
[393771943,1762974859372,-153.0,0.00039586,120]
[393771944,1762974859408,-153.0,0.00039586,120]
[393771945,1762974859444,-153.0,0.00039586,120]
[393771946,1762974859479,-173.36374138,0.000401,120]
[393771947,1762974859513,-181.07643757,0.000401,120]
[393771948,1762974859546,-150.04,0.00040111,120]
[393771949,1762974859579,-500.0,0.00040117,30]
[393771950,1762974859613,-500.0,0.00040148,30]
[393771951,1762974859647,-169.89978001,0.0004023,120]
[393771952,1762974859681,-496.94685554,0.0004023,120]
[393771953,1762974859716,-500.0,0.00040317,30]
[393771954,1762974859750,-500.0,0.00040326,30]
[393771955,1762974859785,-725.99203523,0.00040337,30]
[393771956,1762974859819,-150.0,0.00040373,30]
[393771957,1762974859854,-1009.0,0.000404,30]
[393771958,1762974859891,-165.0,0.00040411,120]
[393771959,1762974859925,-2000.0,0.00040422,30]
[393771960,1762974859960,-4999.98,0.00040428,120]
[393771961,1762974859993,-429.21089253,0.00040433,30]
[393771962,1762974860029,-304.91647494,0.00040433,31]
[393771963,1762974860063,-500.0,0.00040433,31]
[393771964,1762974860097,-199.8757462,0.00040433,31]
[393771965,1762974860134,-500.0,0.00040433,31]
[393771966,1762974860170,-500.0,0.00040433,31]
[393771967,1762974860208,-466.37674113,0.00040433,31]
[393771968,1762974860248,-481.25174986,0.00040433,31]
[393771969,1762974860286,-351.35219248,0.00040433,31]
[393771970,1762974860324,-500.0,0.00040433,31]
[393771971,1762974860359,-211.47177487,0.00040433,31]
[393771972,1762974860393,-500.0,0.00040433,31]
[393771973,1762974860428,-500.0,0.00040433,31]
[393771974,1762974860462,-456.254083,0.00040433,31]
[393771975,1762974860495,-500.0,0.00040433,31]
[393771976,1762974860527,-500.0,0.00040433,31]
[393771977,1762974860559,-500.0,0.00040433,31]
[393771978,1762974860592,-545.4726731,0.00040433,31]
[393771979,1762974860624,-500.0,0.00040433,31]
[393771980,1762974860660,-500.0,0.00040433,31]
[393771981,1762974860693,-500.0,0.00040433,31]
[393771982,1762974860729,-500.0,0.00040433,31]
[393771983,1762974860761,-500.0,0.00040433,31]
[393771984,1762974860796,-500.0,0.00040433,31]
[393771985,1762974860828,-301.79822657,0.00040433,31]
[393771986,1762974860861,-500.0,0.00040433,31]
[393771987,1762974860899,-500.0,0.00040433,31]
[393771988,1762974860936,-500.0,0.00040433,31]
[393771989,1762974860975,-500.0,0.00040433,31]
[393771990,1762974861010,-500.0,0.00040433,31]
[393771991,1762974861047,-500.0,0.00040433,31]
[393771992,1762974861081,-500.0,0.00040433,31]
[393771993,1762974861121,-500.0,0.00040433,31]
[393771994,1762974861162,-500.0,0.00040433,31]
[393771995,1762974861201,-500.0,0.00040433,31]
[393771996,1762974861237,-500.0,0.00040433,31]
[393771997,1762974861270,-500.0,0.00040433,31]
[393771998,1762974861308,-500.0,0.00040433,31]
[393771999,1762974861344,-500.0,0.00040433,31]
[393772000,1762974861381,-511.54439897,0.00040433,31]
[393772001,1762974861414,-500.0,0.00040433,31]
[393772002,1762974861450,-500.0,0.00040433,31]
[393772003,1762974861481,-500.0,0.00040433,31]
[393772004,1762974861514,-500.0,0.00040433,31]
[393772005,1762974861553,-500.0,0.00040433,31]
[393772006,1762974861590,-500.0,0.00040433,31]
[393772007,1762974861623,-500.0,0.00040433,31]
[393772008,1762974861659,-500.0,0.00040433,31]
[393772009,1762974861692,-533.53313629,0.00040433,31]
[393772010,1762974861724,-500.0,0.00040433,31]
[393772011,1762974861759,-500.0,0.00040433,31]
[393772012,1762974861794,-500.0,0.00040433,31]
[393772013,1762974861828,-500.0,0.00040433,31]
[393772014,1762974861865,-500.0,0.00040433,31]
[393772015,1762974861897,-500.0,0.00040433,31]
[393772016,1762974861935,-501.282711,0.00040433,31]
[393772017,1762974861972,-500.0,0.00040433,31]
[393772018,1762974862007,-500.0,0.00040433,31]
[393772019,1762974862046,-500.0,0.00040433,31]
[393772020,1762974862080,-500.0,0.00040433,31]
[393772021,1762974862118,-500.0,0.00040433,31]
[393772022,1762974862156,-204.76788988,0.00040433,31]
[393772023,1762974862190,-2000.0,0.00040433,30]
[393772024,1762974862226,-1007.27970183,0.00040433,30]
[393772025,1762974862261,-1007.27970183,0.00040433,30]
[393772026,1762974862308,-709.3,0.00040434,30]